bitfinex/quotes_BTCUSD_20241014
["timestamp","ask_amount","ask_price","bid_price","bid_amount"]
[1728880934901,0.083244,64402.0,64400.0,0.003]
[1728880935331,0.083244,64402.0,64398.0,0.155284]
[1728880935545,0.1103,64401.0,64398.0,0.155284]
[1728880935769,0.1103,64401.0,64396.0,0.310575]
[1728880935770,0.1103,64401.0,64387.0,0.26122401]
[1728880935984,0.1103,64401.0,64400.0,0.155279]
[1728880937755,0.1103,64401.0,64400.0,0.159279]
[1728880938172,0.1103,64401.0,64400.0,0.155279]
[1728880938419,0.1113,64401.0,64400.0,0.163279]
[1728880938650,0.1123,64401.0,64400.0,0.168279]
[1728880944552,0.1113,64401.0,64400.0,0.163279]
[1728880944844,0.1113,64401.0,64400.0,0.159279]
[1728880945053,0.1123,64401.0,64400.0,0.166279]
[1728880945301,0.1113,64401.0,64400.0,0.162279]
[1728880945511,0.1123,64401.0,64400.0,0.166279]
[1728880950023,0.1123,64401.0,64400.0,0.32750301]
[1728880950252,0.002,64401.0,64400.0,0.32750301]
[1728880950464,0.002,64401.0,64400.0,0.33706492]
[1728880951862,0.002,64401.0,64400.0,0.34192794]
[1728880952278,0.002,64401.0,64400.0,0.34970877]
[1728880953171,0.1884,64401.0,64400.0,0.01586302]
[1728880955314,0.1864,64401.0,64400.0,0.01444341]
[1728880955522,0.1864,64401.0,64400.0,0.00486302]
[1728880955730,0.1884,64401.0,64400.0,0.00486302]
[1728880956087,0.1904,64401.0,64400.0,0.00486302]
[1728880956304,0.1904,64401.0,64400.0,0.01444505]
[1728880957919,0.1864,64401.0,64400.0,0.01444505]
[1728880958137,0.1864,64401.0,64400.0,0.01444543]
[1728880958350,0.1874,64401.0,64400.0,0.01444543]
[1728880958561,0.1864,64401.0,64400.0,0.02222687]
[1728880958791,0.1864,64401.0,64400.0,0.01444543]
[1728880959025,0.1874,64401.0,64400.0,0.01444543]
[1728880959260,0.1864,64401.0,64400.0,0.02222689]
[1728880960069,0.341677,64401.0,64400.0,0.02222689]
[1728880960292,0.346677,64401.0,64400.0,0.0058634]
[1728880960508,0.347677,64401.0,64400.0,0.0058634]
[1728880960722,0.347677,64401.0,64400.0,0.001]
[1728880961366,0.1914,64401.0,64393.0,0.155295]
[1728880961572,0.16028,64400.0,64393.0,0.155295]
[1728880961780,0.155282,64399.0,64393.0,0.155295]
[1728880962207,0.1884,64401.0,64397.0,0.14067796]
[1728880962409,0.1033,64401.0,64400.0,0.155279]
[1728880963048,0.1033,64401.0,64400.0,0.16488512]
[1728880963288,0.1033,64401.0,64400.0,0.32610913]
[1728880963518,0.001644,64402.0,64401.0,0.155277]
[1728880963735,0.001644,64402.0,64401.0,0.45717897]
[1728880965172,0.002644,64402.0,64401.0,0.47478279]
[1728880965417,0.003644,64402.0,64401.0,0.47978279]
[1728880965684,0.003644,64402.0,64401.0,0.47778279]
[1728880965937,0.003644,64402.0,64401.0,0.33710483]
[1728880966181,0.003644,64402.0,64401.0,0.33710467]
[1728880966897,0.003644,64402.0,64401.0,0.17588066]
[1728880969802,0.003644,64402.0,64401.0,0.1758687]
[1728880973480,0.003644,64402.0,64401.0,0.1789739]
[1728880973959,0.003644,64402.0,64401.0,0.17896987]
[1728880974441,0.003644,64402.0,64401.0,0.31964783]
[1728880974701,0.003644,64402.0,64401.0,0.31654263]
[1728880977299,0.003644,64402.0,64401.0,0.30695496]
[1728880977517,0.003644,64402.0,64401.0,0.31653963]
[1728880984177,0.003644,64402.0,64401.0,0.31653574]
[1728880985442,0.003644,64402.0,64401.0,0.17585778]
[1728880986077,0.11,64407.0,64405.0,1.149976]
[1728880986295,0.11,64407.0,64406.0,0.00958078]
[1728880987025,0.11,64407.0,64406.0,0.16484578]
[1728880987257,0.111,64407.0,64406.0,0.16484578]
[1728880987674,0.112,64407.0,64406.0,0.17084578]
[1728880988503,0.111,64407.0,64406.0,0.17084578]
[1728880988773,0.111,64407.0,64406.0,0.01558078]
[1728880989050,0.112,64407.0,64406.0,0.02058078]
[1728880989465,0.113644,64407.0,64406.0,0.17584578]
[1728880991410,0.113644,64407.0,64406.0,0.31962886]
[1728880991623,0.113644,64407.0,64406.0,0.57774775]
[1728880991834,0.003644,64407.0,64406.0,0.62422604]
[1728880992079,0.1022,64416.0,64406.0,0.62422604]
[1728880992080,0.1022,64416.0,64415.0,0.157243]
[1728880992297,0.1022,64416.0,64415.0,0.40550174]
[1728880992925,0.1022,64416.0,64415.0,0.42410192]
[1728880993369,0.1052,64416.0,64415.0,0.42410192]
[1728880993792,0.1062,64416.0,64415.0,0.42410192]
[1728880994429,0.1062,64416.0,64415.0,0.43571692]
[1728880994676,0.1032,64416.0,64415.0,0.43571692]
[1728880994881,0.1032,64416.0,64415.0,0.41711674]
[1728880995097,0.1022,64416.0,64415.0,0.43971692]
[1728880995317,0.1032,64416.0,64415.0,0.41153596]
[1728880995536,0.1032,64416.0,64415.0,0.42110503]
[1728880996053,0.1022,64416.0,64415.0,0.42110503]
[1728880996269,0.1032,64416.0,64415.0,0.42710503]
[1728880997384,0.1032,64416.0,64415.0,0.58832904]
[1728880999320,0.1032,64416.0,64415.0,0.58832297]
[1728881001050,0.1032,64416.0,64415.0,0.59032297]
[1728881003289,0.1032,64416.0,64415.0,0.57871337]
[1728881003513,0.1032,64416.0,64415.0,0.59031555]
[1728881004000,0.1032,64416.0,64415.0,0.54456743]
[1728881004499,0.1032,64416.0,64415.0,0.54256743]
[1728881007266,0.1792,64416.0,64415.0,0.44762752]
[1728881007505,0.1792,64416.0,64415.0,0.03116051]
[1728881008199,0.1792,64416.0,64415.0,0.13116051]
[1728881008915,0.1792,64416.0,64415.0,0.28640351]
[1728881009141,0.1792,64416.0,64415.0,0.13116051]
[1728881009600,0.1792,64416.0,64415.0,0.28640351]
[1728881010024,0.1792,64416.0,64415.0,0.13116051]
[1728881010753,0.1792,64416.0,64415.0,0.03116051]
[1728881011012,0.1792,64416.0,64415.0,0.02160218]
[1728881011247,0.1792,64416.0,64415.0,0.03116376]
[1728881012366,0.33944,64416.0,64415.0,0.01]
[1728881013255,0.33944,64416.0,64415.0,0.006]
[1728881013469,0.33944,64416.0,64407.0,0.000822]
[1728881013470,0.15526,64408.0,64407.0,0.000822]
[1728881013681,0.34046,64408.0,64407.0,0.000822]
[1728881015035,0.34146,64408.0,64407.0,0.001822]
[1728881015480,0.34646,64408.0,64407.0,0.001822]
[1728881016942,0.1912,64408.0,64407.0,0.001822]
[1728881019663,0.155259,64409.0,64407.0,0.001822]
[1728881020287,0.155251,64412.0,64407.0,0.001822]
[1728881020678,0.155251,64412.0,64408.0,0.00486297]
[1728881020914,0.155252,64412.0,64409.0,0.00486297]
[1728881021105,0.3105,64413.0,64407.0,0.000822]
[1728881021320,0.155252,64412.0,64408.0,0.00486299]
[1728881021532,0.155252,64412.0,64409.0,0.00486299]
[1728881021751,0.163252,64412.0,64407.0,0.001822]
[1728881021960,0.163252,64412.0,64408.0,0.00486297]
[1728881022176,0.163252,64412.0,64409.0,0.00486297]
[1728881022384,0.163252,64412.0,64407.0,0.001822]
[1728881022599,0.163252,64412.0,64408.0,0.00486296]
[1728881022802,0.0808,64411.0,64409.0,0.00486296]
[1728881023033,0.0985,64410.0,64409.0,0.00486296]
[1728881023678,0.09831216,64410.0,64409.0,0.00486296]
[1728881024305,0.09831216,64410.0,64409.0,0.00686296]
[1728881024528,0.09831216,64410.0,64409.0,0.002]
[1728881034164,0.25356716,64410.0,64409.0,0.002]
[1728881035512,0.09831216,64410.0,64409.0,0.002]
[1728881036876,0.09831216,64410.0,64409.0,0.002822]
[1728881037097,0.001644,64410.0,64409.0,0.158079]
[1728881037322,0.001644,64410.0,64409.0,0.17076353]
[1728881037770,0.001644,64410.0,64409.0,0.17276353]
[1728881038216,0.001644,64410.0,64409.0,0.17076353]
[1728881039357,0.001644,64410.0,64409.0,0.42697323]
[1728881039582,0.001644,64410.0,64409.0,0.52386848]
[1728881039810,0.001644,64410.0,64409.0,0.56984138]
[1728881041124,0.001644,64410.0,64409.0,0.42888279]
[1728881041326,0.001644,64410.0,64409.0,0.26765878]
[1728881041744,0.101944,64410.0,64409.0,0.26765878]
[1728881041965,0.101944,64410.0,64409.0,0.01240178]
[1728881042814,0.101944,64410.0,64409.0,0.01240555]
[1728881043249,0.257199,64410.0,64409.0,0.002822]
[1728881043463,0.101944,64410.0,64409.0,0.002822]
[1728881043866,0.12627074,64410.0,64409.0,0.002822]
[1728881044518,0.52364975,64410.0,64409.0,0.002822]
[1728881044734,0.52364975,64410.0,64409.0,0.002762]
[1728881044952,0.56906513,64410.0,64409.0,0.002762]
[1728881045378,0.49932301,64410.0,64409.0,0.002762]
[1728881045595,0.182844,64410.0,64409.0,0.000822]
[1728881045820,0.338099,64410.0,64409.0,0.001822]
[1728881046027,0.350099,64410.0,64409.0,0.001822]
[1728881046243,0.339099,64410.0,64409.0,0.000822]
[1728881046441,0.349099,64410.0,64409.0,0.001822]
[1728881046660,0.358099,64410.0,64409.0,0.001822]
[1728881046878,0.347099,64410.0,64409.0,0.000822]
[1728881047127,0.353099,64410.0,64409.0,0.001822]
[1728881047360,0.197844,64410.0,64409.0,0.001822]
[1728881047559,0.191844,64410.0,64409.0,0.000822]
[1728881047967,0.20717151,64410.0,64409.0,0.000822]
[1728881048400,0.37042651,64410.0,64409.0,0.000822]
[1728881048843,0.36242651,64410.0,64409.0,0.000822]
[1728881049064,0.37342651,64410.0,64409.0,0.001822]
[1728881049264,0.36542651,64410.0,64409.0,0.000822]
[1728881049782,0.37042651,64410.0,64409.0,0.001822]
[1728881049993,0.37042651,64410.0,64409.0,0.000822]
[1728881050200,0.37542651,64410.0,64409.0,0.001822]
[1728881050624,0.36542651,64410.0,64409.0,0.000822]
[1728881050830,0.37042651,64410.0,64409.0,0.001822]
[1728881051268,0.36742651,64410.0,64409.0,0.001822]
[1728881051474,0.37042651,64410.0,64409.0,0.001822]
[1728881051904,0.36742651,64410.0,64409.0,0.001822]
[1728881052165,0.36242651,64410.0,64409.0,0.000822]
[1728881052416,0.37042651,64410.0,64409.0,0.001822]
[1728881053648,0.190844,64410.0,64409.0,0.001822]
[1728881054089,0.190844,64410.0,64409.0,0.157079]
[1728881054581,0.109944,64410.0,64409.0,0.157079]
[1728881055560,0.109944,64410.0,64409.0,0.16666004]
[1728881056335,0.106944,64410.0,64409.0,0.157079]
[1728881056796,0.101944,64410.0,64409.0,0.156079]
[1728881057011,0.101944,64410.0,64409.0,0.158079]
[1728881058101,0.101944,64410.0,64409.0,0.16766457]
[1728881058605,0.101944,64410.0,64409.0,0.158079]
[1728881058855,0.101944,64410.0,64409.0,0.16766427]
[1728881059094,0.101944,64410.0,64409.0,0.158079]
[1728881060062,0.101944,64410.0,64409.0,0.16950323]
[1728881062365,0.257199,64410.0,64409.0,0.01424623]
[1728881062794,0.101944,64410.0,64409.0,0.16950323]
[1728881065650,0.101944,64410.0,64409.0,0.002822]
[1728881068061,0.101944,64410.0,64409.0,0.158079]
[1728881068313,0.101944,64410.0,64409.0,0.002822]
[1728881070694,0.101944,64410.0,64409.0,0.158079]
[1728881070898,0.101944,64410.0,64409.0,0.01241172]
[1728881071099,0.101944,64410.0,64409.0,0.002822]
[1728881071551,0.101944,64410.0,64409.0,0.16767147]
[1728881072387,0.101944,64410.0,64409.0,0.17931401]
[1728881073046,0.101944,64410.0,64407.0,0.01240786]
[1728881073047,0.12068599,64408.0,64407.0,0.01240786]
[1728881073472,0.12068599,64408.0,64407.0,0.16766986]
[1728881074160,0.12168599,64408.0,64407.0,0.16766986]
[1728881074832,0.30768599,64408.0,64407.0,0.01240786]
[1728881075043,0.46294599,64408.0,64407.0,0.004822]
[1728881075470,0.30768599,64408.0,64407.0,0.004822]
[1728881076375,0.46294599,64408.0,64407.0,0.004822]
[1728881076823,0.48727409,64408.0,64407.0,0.004822]
[1728881078380,0.63387323,64408.0,64407.0,0.004822]
[1728881078587,0.58727409,64408.0,64407.0,0.004822]
[1728881078796,0.75929596,64408.0,64407.0,0.004822]
[1728881079074,0.92051997,64408.0,64407.0,0.004822]
[1728881079290,0.92051997,64408.0,64407.0,0.000822]
[1728881079738,0.93051997,64408.0,64407.0,0.001822]
[1728881079962,0.92951997,64408.0,64407.0,0.001822]
[1728881080168,0.7574981,64408.0,64407.0,0.001822]
[1728881080606,0.82836823,64408.0,64407.0,0.001822]
[1728881080990,0.82736823,64408.0,64407.0,0.001822]
[1728881081406,0.83436823,64408.0,64407.0,0.001822]
[1728881081650,0.7644981,64408.0,64407.0,0.001822]
[1728881082758,0.64983919,64408.0,64407.0,0.001822]
[1728881082969,0.57894599,64408.0,64407.0,0.001822]
[1728881083587,0.62550844,64408.0,64407.0,0.001822]
[1728881084210,0.57894599,64408.0,64407.0,0.001822]
[1728881085502,0.57894599,64408.0,64407.0,0.00051259]
[1728881086337,0.60327645,64408.0,64407.0,0.00051259]
[1728881089444,0.26571645,64408.0,64407.0,0.14633452]
[1728881089673,0.13768599,64408.0,64407.0,0.30159652]
[1728881089892,0.13768599,64408.0,64407.0,0.31953839]
[1728881090106,0.13768599,64408.0,64407.0,0.3291196]
[1728881090317,0.13068599,64408.0,64407.0,0.34054651]
[1728881090535,0.13068599,64408.0,64407.0,0.33038541]
[1728881090751,0.13768599,64408.0,64407.0,0.33038541]
[1728881090967,0.12768599,64408.0,64407.0,0.32987282]
[1728881091181,0.12768599,64408.0,64407.0,0.33087282]
[1728881091613,0.12068599,64408.0,64407.0,0.32987282]
[1728881091857,0.12068599,64408.0,64407.0,0.33387282]
[1728881092087,0.12068599,64408.0,64407.0,0.33387242]
[1728881094040,0.12168599,64408.0,64407.0,0.33587242]
[1728881094304,0.12168599,64408.0,64407.0,0.32444551]
[1728881094984,0.12168599,64408.0,64407.0,0.48566952]
[1728881095920,0.12168599,64408.0,64407.0,0.48566902]
[1728881096137,0.12168599,64408.0,64407.0,0.48649102]
[1728881096648,0.30408599,64408.0,64407.0,0.02904642]
[1728881096885,0.30408599,64408.0,64407.0,0.01168477]
[1728881097354,0.46531,64408.0,64407.0,0.01168477]
[1728881097570,0.50591386,64408.0,64407.0,0.006822]
[1728881097789,0.45934599,64408.0,64407.0,0.006822]
[1728881098013,0.45834599,64408.0,64407.0,0.004822]
[1728881098301,0.45834599,64408.0,64407.0,0.00568554]
[1728881098511,0.45834599,64408.0,64407.0,0.00668554]
[1728881098975,0.45834599,64408.0,64407.0,0.00768554]
[1728881099454,0.45834599,64408.0,64407.0,0.00768539]
[1728881099673,0.22338599,64408.0,64407.0,0.00768539]
[1728881101328,0.37864599,64408.0,64407.0,0.00768539]
[1728881101565,0.22338599,64408.0,64407.0,0.00768539]
[1728881101826,0.12068599,64408.0,64407.0,0.17072843]
[1728881102308,0.12068599,64408.0,64407.0,0.18029845]
[1728881102310,0.12068599,64408.0,64407.0,0.20533646]
[1728881102561,0.12068599,64408.0,64407.0,0.19002382]
[1728881102789,0.12068599,64408.0,64407.0,0.18029705]
[1728881103270,0.12068599,64408.0,64407.0,0.02503505]
[1728881103506,0.38384599,64408.0,64407.0,0.01546503]
[1728881103749,0.38384599,64408.0,64407.0,0.0076847]
[1728881104012,0.22858599,64408.0,64407.0,0.0076847]
[1728881104283,0.22858599,64408.0,64407.0,0.180297]
[1728881105008,0.22858599,64408.0,64407.0,0.025035]
[1728881105503,0.38384599,64408.0,64407.0,0.025035]
[1728881105750,0.22858599,64408.0,64407.0,0.025035]
[1728881106031,0.22858599,64408.0,64407.0,0.02503465]
[1728881106288,0.38384599,64408.0,64407.0,0.01546575]
[1728881106539,0.22858599,64408.0,64407.0,0.02503451]
[1728881107639,0.38384599,64408.0,64407.0,0.02503451]
[1728881107859,0.38548999,64408.0,64407.0,0.02503451]
[1728881108295,0.38548999,64408.0,64407.0,0.01546575]
[1728881108504,0.46608999,64408.0,64407.0,0.0076847]
[1728881110368,0.46608999,64408.0,64407.0,0.002822]
[1728881110586,0.51265786,64408.0,64407.0,0.002822]
[1728881111238,0.46608999,64408.0,64407.0,0.000822]
[1728881111469,0.47108999,64408.0,64407.0,0.000822]
[1728881111725,0.47308999,64408.0,64407.0,0.000822]
[1728881112003,0.70118413,64408.0,64407.0,0.000822]
[1728881112235,0.70118413,64408.0,64388.0,0.000822]
[1728881112236,0.340386,64397.0,64396.0,0.23275842]
[1728881112764,0.155306,64389.0,64388.0,0.000822]
[1728881112974,0.263306,64389.0,64388.0,0.00568654]
[1728881113216,0.340406,64389.0,64388.0,0.00568654]
[1728881113737,0.50163001,64389.0,64388.0,0.000822]
[1728881114259,0.50163001,64389.0,64388.0,0.001822]
[1728881114507,0.50263001,64389.0,64388.0,0.009822]
[1728881114981,0.50363001,64389.0,64388.0,0.009822]
[1728881116300,0.50263001,64389.0,64388.0,0.009822]
[1728881116547,0.53596674,64389.0,64388.0,0.009822]
[1728881116758,0.53496674,64389.0,64388.0,0.000822]
[1728881116967,0.52596674,64389.0,64388.0,0.000822]
[1728881117460,0.53796674,64389.0,64388.0,0.000822]
[1728881117669,0.53896674,64389.0,64388.0,0.000822]
[1728881117888,0.52696674,64389.0,64388.0,0.000822]
[1728881118111,0.53596674,64389.0,64388.0,0.000822]
[1728881118533,0.53496674,64389.0,64388.0,0.000822]
[1728881119375,0.52596674,64389.0,64388.0,0.000822]
[1728881119574,0.53596674,64389.0,64388.0,0.000822]
[1728881120241,0.52596674,64389.0,64388.0,0.000822]
[1728881120485,0.53996674,64389.0,64388.0,0.000822]
[1728881120911,0.53096674,64389.0,64388.0,0.000822]
[1728881121363,0.54896674,64389.0,64388.0,0.000822]
[1728881122214,0.54396674,64389.0,64388.0,0.000822]
[1728881122422,0.54896674,64389.0,64388.0,0.000822]
[1728881123705,0.52463001,64389.0,64388.0,0.000822]
[1728881123972,0.51963001,64389.0,64388.0,0.000822]
[1728881125094,0.358406,64389.0,64388.0,0.000822]
[1728881125556,0.344406,64389.0,64388.0,0.000822]
[1728881125783,0.358406,64389.0,64388.0,0.000822]
[1728881125998,0.354406,64389.0,64388.0,0.000822]
[1728881126445,0.340406,64389.0,64388.0,0.000822]
[1728881126653,0.37174261,64389.0,64388.0,0.000822]
[1728881126878,0.87174261,64389.0,64388.0,0.000822]
[1728881127094,0.86974261,64389.0,64388.0,0.000822]
[1728881127510,0.87074261,64389.0,64388.0,0.000822]
[1728881129664,1.17671056,64389.0,64388.0,0.000822]
[1728881129920,1.13696662,64389.0,64388.0,0.000822]
[1728881130479,1.13096662,64389.0,64388.0,0.000822]
[1728881130696,1.13696662,64389.0,64388.0,0.000822]
[1728881130912,1.13796662,64389.0,64388.0,0.000822]
[1728881131132,1.13996662,64389.0,64388.0,0.000822]
[1728881131839,1.16296662,64389.0,64388.0,0.000822]
[1728881132063,1.16296662,64389.0,64373.0,0.23358042]
[1728881132064,0.005,64383.0,64373.0,0.23358042]
[1728881132279,0.260742,64374.0,64373.0,0.23358042]
[1728881132719,0.260742,64374.0,64373.0,0.000822]
[1728881132903,0.28508336,64374.0,64373.0,0.000822]
[1728881133516,0.261742,64374.0,64373.0,0.000822]
[1728881134159,0.268742,64374.0,64373.0,0.000822]
[1728881134480,0.768742,64374.0,64373.0,0.000822]
[1728881136205,0.850342,64374.0,64373.0,0.000822]
[1728881137531,0.85009381,64374.0,64373.0,0.000822]
[1728881137948,0.87443524,64374.0,64373.0,0.000822]
[1728881138981,0.86743524,64374.0,64373.0,0.000822]
[1728881139448,0.79083524,64374.0,64373.0,0.0056882]
[1728881139657,0.79183524,64374.0,64373.0,0.000822]
[1728881139863,0.78583524,64374.0,64373.0,0.000822]
[1728881140068,0.78483524,64374.0,64373.0,0.00568813]
[1728881140275,0.79183524,64374.0,64373.0,0.00568813]
[1728881140508,0.79283524,64374.0,64373.0,0.00568813]
[1728881140911,0.63774143,64374.0,64373.0,0.00568813]
[1728881141363,0.53234143,64374.0,64373.0,0.02422857]
[1728881141598,0.53134143,64374.0,64373.0,0.54680032]
[1728881141842,0.47196985,64374.0,64373.0,0.59717381]
[1728881142044,0.46596985,64374.0,64373.0,0.63368931]
[1728881142266,0.23275842,64392.0,64391.0,0.167701]
[1728881142469,0.23275842,64392.0,64391.0,0.49210695]
[1728881142673,0.23275842,64392.0,64391.0,0.60742148]
[1728881142885,0.23275842,64399.0,64398.0,0.155284]
[1728881143137,0.23275842,64399.0,64398.0,0.33873136]
[1728881143369,0.001644,64407.0,64399.0,0.155281]
[1728881143603,0.001644,64407.0,64399.0,0.16014433]
[1728881143812,0.001644,64407.0,64399.0,0.18792308]
[1728881144219,0.001644,64407.0,64399.0,0.34914709]
[1728881144448,0.001644,64407.0,64399.0,0.44914709]
[1728881144657,0.001644,64407.0,64399.0,0.45414709]
[1728881144861,0.001644,64407.0,64399.0,0.45614709]
[1728881145066,0.001644,64407.0,64399.0,0.45414709]
[1728881145272,0.501,64400.0,64399.0,0.47944116]
[1728881145533,0.501,64400.0,64399.0,0.46414709]
[1728881146004,0.503,64400.0,64399.0,0.47714709]
[1728881146416,0.503,64400.0,64399.0,0.47514709]
[1728881146543,0.502,64400.0,64399.0,0.47614709]
[1728881146762,0.503,64400.0,64399.0,0.47714709]
[1728881147502,0.503,64400.0,64399.0,0.47514709]
[1728881147734,0.503,64400.0,64399.0,0.4888259]
[1728881147735,0.50281214,64400.0,64399.0,0.4888259]
[1728881147978,0.50281214,64400.0,64399.0,0.4868259]
[1728881148209,0.50181214,64400.0,64399.0,0.4858259]
[1728881148380,0.50281214,64400.0,64399.0,0.47804457]
[1728881148579,0.50281214,64400.0,64399.0,0.4858259]
[1728881148808,0.50281214,64400.0,64399.0,0.47804457]
[1728881149022,0.50281214,64400.0,64399.0,0.4858259]
[1728881149231,0.50281214,64400.0,64399.0,0.47314455]
[1728881149459,0.50281214,64400.0,64399.0,0.47800727]
[1728881150519,0.50281214,64400.0,64399.0,0.07800727]
[1728881150736,0.50281214,64400.0,64399.0,0.33328827]
[1728881150935,0.50281214,64400.0,64399.0,0.32376654]
[1728881151191,0.50281214,64400.0,64399.0,0.33328827]
[1728881151362,0.50281214,64400.0,64399.0,0.32376654]
[1728881153193,0.50281214,64400.0,64399.0,0.33528827]
[1728881153413,0.50281214,64400.0,64399.0,0.32376654]
[1728881154284,0.50281214,64400.0,64399.0,0.29682253]
[1728881154534,0.50281214,64400.0,64399.0,0.29195981]
[1728881154752,0.50281214,64400.0,64399.0,0.29764563]
[1728881154971,0.50445814,64400.0,64399.0,0.29764563]
[1728881156829,0.50420995,64400.0,64399.0,0.29764563]
[1728881158460,0.50420995,64400.0,64399.0,0.29764589]
[1728881158705,0.50220995,64400.0,64399.0,0.27764589]
[1728881158909,0.50120995,64400.0,64399.0,0.27764589]
[1728881159126,0.50320995,64400.0,64399.0,0.28264589]
[1728881159349,0.50320995,64400.0,64399.0,0.4438699]
[1728881160221,0.50220995,64400.0,64399.0,0.4388699]
[1728881160641,0.50320995,64400.0,64399.0,0.4428699]
[1728881160845,0.50120995,64400.0,64399.0,0.4388699]
[1728881161073,0.50120995,64400.0,64399.0,0.4408699]
[1728881161293,0.50120995,64400.0,64399.0,0.43886951]
[1728881161707,0.50320995,64400.0,64399.0,0.44186951]
[1728881162215,0.50220995,64400.0,64399.0,0.44186951]
[1728881163737,0.50320995,64400.0,64399.0,0.28842581]
[1728881163957,0.50320995,64400.0,64399.0,0.2806455]
[1728881164452,0.50320995,64400.0,64399.0,0.28842581]
[1728881164693,0.50320995,64400.0,64399.0,0.2806455]
[1728881164944,0.50320995,64400.0,64399.0,0.28842581]
[1728881165182,0.50320995,64400.0,64399.0,0.27578281]
[1728881165400,0.50320995,64400.0,64399.0,0.2962073]
[1728881165662,0.50320995,64400.0,64399.0,0.28842654]
[1728881165915,0.50320995,64400.0,64399.0,0.45915118]
[1728881166135,0.50320995,64400.0,64399.0,0.48215118]
[1728881166373,0.46820165,64400.0,64399.0,0.51091755]
[1728881166621,0.46820165,64400.0,64399.0,0.48591755]
[1728881166828,0.46820165,64400.0,64399.0,0.47071594]
[1728881167274,0.46620165,64400.0,64399.0,0.46771594]
[1728881167485,0.46620165,64400.0,64399.0,0.46671594]
[1728881167486,0.46820165,64400.0,64399.0,0.46671594]
[1728881167697,0.46720165,64400.0,64399.0,0.30649193]
[1728881168124,0.46820165,64400.0,64399.0,0.29892717]
[1728881168576,0.46820165,64400.0,64399.0,0.31049193]
[1728881169035,0.46720165,64400.0,64399.0,0.30649193]
[1728881169284,0.46720165,64400.0,64399.0,0.32169354]
[1728881169771,0.46620165,64400.0,64399.0,0.32169354]
[1728881169988,0.46620165,64400.0,64399.0,0.33569354]
[1728881170422,0.46720165,64400.0,64399.0,0.36819715]
[1728881172183,0.46720165,64400.0,64399.0,0.34218426]
[1728881172405,0.46720165,64400.0,64399.0,0.36860284]
[1728881175888,0.46720165,64400.0,64399.0,0.34997332]
[1728881176126,0.57500165,64400.0,64399.0,0.34373479]
[1728881176343,0.57500165,64400.0,64399.0,0.36864274]
[1728881176782,0.57500165,64400.0,64399.0,0.36864415]
[1728881179680,0.57500165,64400.0,64399.0,0.36864409]
[1728881180398,0.65820165,64400.0,64399.0,0.10836309]
[1728881180610,0.65820165,64400.0,64399.0,0.09668428]
[1728881180846,0.81348065,64400.0,64399.0,0.09668428]
[1728881181542,0.81348065,64400.0,64399.0,0.07803298]
[1728881181771,0.65720165,64400.0,64399.0,0.06403298]
[1728881181997,0.81248065,64400.0,64399.0,0.06403298]
[1728881182225,0.81348065,64400.0,64399.0,0.05104694]
[1728881182448,0.81348065,64400.0,64399.0,0.03704694]
[1728881182693,0.81348065,64400.0,64399.0,0.04304694]
[1728881182694,0.81448065,64400.0,64399.0,0.04304694]
[1728881183376,0.81348065,64400.0,64399.0,0.03704694]
[1728881183583,0.81348065,64400.0,64399.0,0.0274667]
[1728881183584,0.81648065,64400.0,64399.0,0.0274667]
[1728881183758,0.81548065,64400.0,64399.0,0.0134667]
[1728881183965,0.81548065,64400.0,64399.0,0.02303578]
[1728881184254,0.155316,64385.0,64384.0,0.01863501]
[1728881184414,0.1,64398.0,64374.0,0.01863501]
[1728881184415,0.155323,64382.0,64374.0,0.01863501]
[1728881184637,0.1931,64381.0,64379.0,0.01164134]
[1728881184797,0.1931,64381.0,64375.0,0.155338]
[1728881184798,0.1931,64381.0,64380.0,0.01164134]
[1728881185228,0.348425,64381.0,64380.0,0.01164134]
[1728881185432,0.310656,64380.0,64373.0,0.000822]
[1728881185632,0.15534,64375.0,64373.0,0.000822]
[1728881185835,0.1078,64379.0,64373.0,0.000822]
[1728881185836,0.342242,64374.0,64373.0,0.000822]
[1728881186061,0.1869,64374.0,64373.0,0.000822]
[1728881186262,0.342242,64374.0,64373.0,0.000822]
[1728881186643,0.36658223,64374.0,64373.0,0.000822]
[1728881187654,0.36658223,64374.0,64373.0,0.003822]
[1728881188378,0.36758223,64374.0,64373.0,0.003822]
[1728881190327,0.36758223,64374.0,64373.0,0.000822]
[1728881190591,0.36658223,64374.0,64373.0,0.000822]
[1728881190818,0.36758223,64374.0,64373.0,0.000822]
[1728881191041,0.36858223,64374.0,64373.0,0.003822]
[1728881191295,0.155349,64371.0,64370.0,0.000823]
[1728881191513,0.347649,64371.0,64370.0,0.000823]
[1728881191748,0.48860759,64371.0,64370.0,0.000823]
[1728881193555,0.48960759,64371.0,64370.0,0.003823]
[1728881194046,0.48860759,64371.0,64370.0,0.000823]
[1728881194294,0.48860759,64371.0,64370.0,0.001823]
[1728881194537,0.6588316,64371.0,64370.0,0.001823]
[1728881195864,0.347649,64371.0,64370.0,0.000823]
[1728881196074,0.356649,64371.0,64370.0,0.001823]
[1728881196715,0.38099175,64371.0,64370.0,0.001823]
[1728881203540,0.356649,64371.0,64370.0,0.001823]
[1728881205428,0.2013,64371.0,64370.0,0.001823]
[1728881205605,0.2013,64371.0,64370.0,0.00668918]
[1728881205812,0.2013,64371.0,64370.0,0.16204018]
[1728881206015,0.1184,64371.0,64370.0,0.16204018]
[1728881206290,0.001646,64374.0,64373.0,0.155344]
[1728881206465,0.001646,64374.0,64373.0,0.16021018]
[1728881206803,0.001646,64374.0,64373.0,0.33232553]
[1728881207085,0.001646,64374.0,64373.0,0.33872603]
[1728881207299,0.001646,64374.0,64371.0,0.01158166]
[1728881207300,0.195446,64374.0,64371.0,0.01158166]
[1728881207521,0.195446,64374.0,64373.0,0.01265032]
[1728881207735,0.195446,64374.0,64373.0,0.001]
[1728881207736,0.350788,64374.0,64373.0,0.001]
[1728881207936,0.351788,64374.0,64373.0,0.00586551]
[1728881208147,0.350788,64374.0,64373.0,0.00486551]
[1728881208355,0.351788,64374.0,64373.0,0.01865071]
[1728881208573,0.37612812,64374.0,64373.0,0.01865071]
[1728881208778,0.37512812,64374.0,64373.0,0.01265071]
[1728881208984,0.22078612,64374.0,64373.0,0.02365071]
[1728881209193,0.22078612,64374.0,64373.0,0.02365078]
[1728881209398,0.22178612,64374.0,64373.0,0.02665078]